[Event "*** Titled Tuesday Blitz"]
[Site "Chess.com"]
[Date "2021.03.02"]
[Round "4"]
[White "Szparu"]
[Black "kleopl"]
[Result "1/2-1/2"]
[WhiteElo "2648"]
[BlackElo "2491"]
[TimeControl "180+1"]
[EndTime "10:40:03 PST"]
[Termination "Game drawn by repetition"]

1. d4 {[%clk 0:03:00.9]} 1... d6 {[%clk 0:02:58.7]} 2. e4 {[%clk 0:02:54.8]}
2... c6 {[%clk 0:02:57.6]} 3. Nf3 {[%clk 0:02:49.2]} 3... Bg4 {[%clk 0:02:57.1]}
4. Nc3 {[%clk 0:02:44.8]} 4... d5 {[%clk 0:02:55.2]} 5. exd5 {[%clk 0:02:34.1]}
5... cxd5 {[%clk 0:02:55]} 6. Bb5+ {[%clk 0:02:00]} 6... Nc6 {[%clk 0:02:54.9]}
7. h3 {[%clk 0:01:44.5]} 7... Bxf3 {[%clk 0:02:53.7]} 8. Qxf3 {[%clk 0:01:43.8]}
8... e6 {[%clk 0:02:53.6]} 9. O-O {[%clk 0:01:41.1]} 9... Nf6 {[%clk 0:02:52.8]}
10. Ne2 {[%clk 0:01:36.7]} 10... a6 {[%clk 0:02:49.8]} 11. Bd3 {[%clk
0:01:27.4]} 11... Bd6 {[%clk 0:02:38.7]} 12. c3 {[%clk 0:01:26.9]} 12... h6
{[%clk 0:02:35.1]} 13. Nf4 {[%clk 0:01:24]} 13... O-O {[%clk 0:02:32.4]} 14. Nh5
{[%clk 0:01:20.4]} 14... Nxh5 {[%clk 0:02:31.3]} 15. Qxh5 {[%clk 0:01:20.5]}
15... Qf6 {[%clk 0:02:28.1]} 16. Be3 {[%clk 0:01:15.9]} 16... b5 {[%clk
0:02:26.2]} 17. f4 {[%clk 0:01:15.2]} 17... b4 {[%clk 0:02:23.7]} 18. g4 {[%clk
0:01:13.6]} 18... bxc3 {[%clk 0:02:12.7]} 19. bxc3 {[%clk 0:01:06]} 19... g6
{[%clk 0:02:00.2]} 20. Qxh6 {[%clk 0:01:01.6]} 20... Be7 {[%clk 0:01:56.9]} 21.
f5 {[%clk 0:00:31.1]} 21... exf5 {[%clk 0:01:55]} 22. gxf5 {[%clk 0:00:28.3]}
22... g5 {[%clk 0:01:38.5]} 23. Qh5 {[%clk 0:00:28.4]} 23... Kg7 {[%clk
0:01:38]} 24. h4 {[%clk 0:00:21.7]} 24... Rh8 {[%clk 0:01:34.7]} 25. Qxg5+
{[%clk 0:00:21.1]} 25... Kf8 {[%clk 0:01:32.1]} 26. Qxf6 {[%clk 0:00:20]} 26...
Bxf6 {[%clk 0:01:33]} 27. Bg5 {[%clk 0:00:20.6]} 27... Rg8 {[%clk 0:01:26.9]}
28. Kf2 {[%clk 0:00:20.5]} 28... Bxg5 {[%clk 0:01:27]} 29. hxg5 {[%clk
0:00:21.4]} 29... Rxg5 {[%clk 0:01:27.3]} 30. Rg1 {[%clk 0:00:22.1]} 30... Rxg1
{[%clk 0:01:20.5]} 31. Rxg1 {[%clk 0:00:21.6]} 31... Rb8 {[%clk 0:01:18]} 32.
Rb1 {[%clk 0:00:19]} 32... Rxb1 {[%clk 0:01:10.2]} 33. Bxb1 {[%clk 0:00:19.9]}
33... f6 {[%clk 0:01:10.8]} 34. Ke3 {[%clk 0:00:15.8]} 34... Ke7 {[%clk
0:01:10.4]} 35. Kd2 {[%clk 0:00:15.9]} 35... Kd6 {[%clk 0:01:06.9]} 36. Kc2
{[%clk 0:00:15.3]} 36... Kc7 {[%clk 0:01:06.5]} 37. Kb3 {[%clk 0:00:14.8]} 37...
Kb6 {[%clk 0:01:05.8]} 38. Bd3 {[%clk 0:00:14.8]} 38... Na5+ {[%clk 0:01:04]}
39. Kc2 {[%clk 0:00:13.9]} 39... Nc6 {[%clk 0:01:02.5]} 40. Kd2 {[%clk
0:00:14.5]} 40... a5 {[%clk 0:01:01]} 41. a4 {[%clk 0:00:12.7]} 41... Ne7 {[%clk
0:00:58.6]} 42. Ke3 {[%clk 0:00:11.9]} 42... Kc7 {[%clk 0:00:58.7]} 43. Kf4
{[%clk 0:00:12]} 43... Kd8 {[%clk 0:00:58.2]} 44. Kg4 {[%clk 0:00:10.4]} 44...
Ke8 {[%clk 0:00:58.4]} 45. Kh5 {[%clk 0:00:10.2]} 45... Kf7 {[%clk 0:00:58.4]}
46. Kh6 {[%clk 0:00:09.7]} 46... Nc8 {[%clk 0:00:57.3]} 47. c4 {[%clk 0:00:09]}
47... dxc4 {[%clk 0:00:55.5]} 48. Bxc4+ {[%clk 0:00:09.4]} 48... Ke7 {[%clk
0:00:56.2]} 49. Kg7 {[%clk 0:00:08.5]} 49... Nd6 {[%clk 0:00:56.5]} 50. Be6
{[%clk 0:00:08.5]} 50... Ne4 {[%clk 0:00:55.2]} 51. Kg6 {[%clk 0:00:07.3]} 51...
Nd6 {[%clk 0:00:54.9]} 52. Bb3 {[%clk 0:00:05.9]} 52... Ne4 {[%clk 0:00:54.5]}
53. Bd5 {[%clk 0:00:05.5]} 53... Nc3 {[%clk 0:00:54]} 54. Bb3 {[%clk 0:00:04.2]}
54... Ne4 {[%clk 0:00:53.7]} 55. Be6 {[%clk 0:00:03.9]} 55... Nd6 {[%clk
0:00:48.9]} 56. Kh5 {[%clk 0:00:03.5]} 56... Ne4 {[%clk 0:00:47.9]} 57. Kg4
{[%clk 0:00:03.7]} 57... Nc3 {[%clk 0:00:47]} 58. Bb3 {[%clk 0:00:04]} 58... Kd6
{[%clk 0:00:47.3]} 59. Kh5 {[%clk 0:00:04.2]} 59... Ke7 {[%clk 0:00:46.6]} 60.
Kg6 {[%clk 0:00:04.3]} 60... Ne4 {[%clk 0:00:46.9]} 1/2-1/2

[Event "*** Titled Tuesday Blitz"]
[Site "Chess.com"]
[Date "2021.03.02"]
[Round "4"]
[White "MrChampion_Coach"]
[Black "Stouuf"]
[Result "1-0"]
[WhiteElo "2486"]
[BlackElo "2611"]
[TimeControl "180+1"]
[EndTime "10:40:03 PST"]
[Termination "MrChampion_Coach won by checkmate"]

1. d4 {[%clk 0:02:59]} 1... d6 {[%clk 0:02:58.9]} 2. e4 {[%clk 0:02:56.2]} 2...
Nf6 {[%clk 0:02:58.5]} 3. Nc3 {[%clk 0:02:55.3]} 3... e5 {[%clk 0:02:52.9]} 4.
Nf3 {[%clk 0:02:55.1]} 4... Nbd7 {[%clk 0:02:51.5]} 5. Bc4 {[%clk 0:02:53.5]}
5... exd4 {[%clk 0:02:51.2]} 6. Nxd4 {[%clk 0:02:48.3]} 6... Nb6 {[%clk
0:02:50.9]} 7. Be2 {[%clk 0:02:47.7]} 7... Be7 {[%clk 0:02:49.9]} 8. O-O {[%clk
0:02:47.3]} 8... O-O {[%clk 0:02:49.8]} 9. a4 {[%clk 0:02:42.6]} 9... a5 {[%clk
0:02:42.9]} 10. Re1 {[%clk 0:02:42.1]} 10... c6 {[%clk 0:02:41.9]} 11. b3 {[%clk
0:02:36.2]} 11... d5 {[%clk 0:02:40.7]} 12. e5 {[%clk 0:02:34.4]} 12... Ne8
{[%clk 0:02:40.3]} 13. Bf1 {[%clk 0:02:17.6]} 13... g6 {[%clk 0:02:40]} 14. Ba3
{[%clk 0:02:16]} 14... Bxa3 {[%clk 0:02:37.2]} 15. Rxa3 {[%clk 0:02:15.8]} 15...
Ng7 {[%clk 0:02:37.4]} 16. Ra1 {[%clk 0:02:07]} 16... f6 {[%clk 0:02:28.6]} 17.
Qd2 {[%clk 0:01:55.5]} 17... fxe5 {[%clk 0:02:25.9]} 18. Rxe5 {[%clk 0:01:56.4]}
18... Qf6 {[%clk 0:02:25.3]} 19. Rae1 {[%clk 0:01:56.6]} 19... Bd7 {[%clk
0:02:18.9]} 20. Nf3 {[%clk 0:01:49.7]} 20... Kh8 {[%clk 0:01:58.6]} 21. Qd4
{[%clk 0:01:24]} 21... Nc8 {[%clk 0:01:55.3]} 22. Qc5 {[%clk 0:00:52.9]} 22...
Nf5 {[%clk 0:01:37.8]} 23. R5e2 {[%clk 0:00:14.7]} 23... b6 {[%clk 0:01:22.4]}
24. Qa3 {[%clk 0:00:14.9]} 24... Ncd6 {[%clk 0:01:22.4]} 25. Ne5 {[%clk
0:00:14.6]} 25... Be8 {[%clk 0:01:07.9]} 26. Qa1 {[%clk 0:00:12.2]} 26... Nd4
{[%clk 0:01:02.3]} 27. Rd2 {[%clk 0:00:11.2]} 27... Ne6 {[%clk 0:00:45.3]} 28.
g3 {[%clk 0:00:09.3]} 28... Nc5 {[%clk 0:00:38.5]} 29. Bg2 {[%clk 0:00:08.9]}
29... Ra7 {[%clk 0:00:32.8]} 30. Rde2 {[%clk 0:00:09]} 30... Nf5 {[%clk
0:00:23.5]} 31. Kh1 {[%clk 0:00:07.7]} 31... Re7 {[%clk 0:00:22.6]} 32. f4
{[%clk 0:00:05.3]} 32... Kg8 {[%clk 0:00:20.3]} 33. Nxd5 {[%clk 0:00:03.6]}
33... cxd5 {[%clk 0:00:21.2]} 34. Bxd5+ {[%clk 0:00:04.1]} 34... Kg7 {[%clk
0:00:20]} 35. Qd1 {[%clk 0:00:02.6]} 35... Ne6 {[%clk 0:00:08.9]} 36. Qa1 {[%clk
0:00:02.6]} 36... Nc5 {[%clk 0:00:08.9]} 37. g4 {[%clk 0:00:02.8]} 37... Nh4
{[%clk 0:00:08.3]} 38. g5 {[%clk 0:00:03.3]} 38... Qxf4 {[%clk 0:00:05.9]} 39.
Ng4+ {[%clk 0:00:03.7]} 39... Rf6 {[%clk 0:00:02.1]} 40. gxf6+ {[%clk
0:00:03.7]} 40... Kf8 {[%clk 0:00:02.5]} 41. fxe7# {[%clk 0:00:03.8]} 1-0

[Event "*** Titled Tuesday Blitz"]
[Site "Chess.com"]
[Date "2021.03.02"]
[Round "4"]
[White "Azerichess"]
[Black "Goryachkina"]
[Result "0-1"]
[WhiteElo "2948"]
[BlackElo "2686"]
[TimeControl "180+1"]
[EndTime "10:40:04 PST"]
[Termination "Goryachkina won on time"]

1. d4 {[%clk 0:03:00.9]} 1... Nf6 {[%clk 0:02:59.2]} 2. c4 {[%clk 0:03:01.4]}
2... e6 {[%clk 0:02:59.4]} 3. Nc3 {[%clk 0:03:02.1]} 3... d5 {[%clk 0:02:58.9]}
4. cxd5 {[%clk 0:03:01.4]} 4... exd5 {[%clk 0:02:59]} 5. Bg5 {[%clk 0:03:00.5]}
5... c6 {[%clk 0:02:57.7]} 6. e3 {[%clk 0:02:58.3]} 6... h6 {[%clk 0:02:57]} 7.
Bh4 {[%clk 0:02:57.2]} 7... Be7 {[%clk 0:02:57]} 8. Bd3 {[%clk 0:02:56.8]} 8...
Ne4 {[%clk 0:02:55.6]} 9. Bxe7 {[%clk 0:02:49]} 9... Qxe7 {[%clk 0:02:56.5]} 10.
Nge2 {[%clk 0:02:38.4]} 10... O-O {[%clk 0:02:49.4]} 11. O-O {[%clk 0:02:38.3]}
11... Bf5 {[%clk 0:02:25.6]} 12. Qc2 {[%clk 0:02:29.8]} 12... Nxc3 {[%clk
0:02:21.7]} 13. bxc3 {[%clk 0:02:30.7]} 13... Bxd3 {[%clk 0:02:19]} 14. Qxd3
{[%clk 0:02:31.6]} 14... Nd7 {[%clk 0:02:14.6]} 15. c4 {[%clk 0:02:31.4]} 15...
dxc4 {[%clk 0:02:10]} 16. Qxc4 {[%clk 0:02:32.3]} 16... c5 {[%clk 0:02:09.1]}
17. a4 {[%clk 0:02:23.4]} 17... cxd4 {[%clk 0:01:59.8]} 18. Nxd4 {[%clk
0:02:24.3]} 18... Rac8 {[%clk 0:01:58.9]} 19. Qb5 {[%clk 0:02:22.7]} 19... Nf6
{[%clk 0:01:50.9]} 20. Rab1 {[%clk 0:02:08.7]} 20... Rc7 {[%clk 0:01:48.5]} 21.
h3 {[%clk 0:01:49.4]} 21... Ne4 {[%clk 0:01:43.8]} 22. Rb2 {[%clk 0:01:49.4]}
22... Nc3 {[%clk 0:01:35.4]} 23. Qb3 {[%clk 0:01:45]} 23... Rfc8 {[%clk
0:01:29.3]} 24. Nb5 {[%clk 0:01:43.6]} 24... Nxb5 {[%clk 0:01:28.1]} 25. axb5
{[%clk 0:01:44.5]} 25... Rc1 {[%clk 0:01:11.2]} 26. Rb1 {[%clk 0:01:43.8]} 26...
Rxf1+ {[%clk 0:01:09.6]} 27. Rxf1 {[%clk 0:01:44.7]} 27... a6 {[%clk 0:00:55.3]}
28. bxa6 {[%clk 0:01:39.3]} 28... bxa6 {[%clk 0:00:55.7]} 29. Ra1 {[%clk
0:01:39.8]} 29... Qd6 {[%clk 0:00:41.5]} 30. Qb7 {[%clk 0:01:31]} 30... Rb8
{[%clk 0:00:36.8]} 31. Qa7 {[%clk 0:01:28.7]} 31... g6 {[%clk 0:00:30.9]} 32. g3
{[%clk 0:01:26.4]} 32... Rb6 {[%clk 0:00:30.7]} 33. Rc1 {[%clk 0:01:23.7]} 33...
Kg7 {[%clk 0:00:22.8]} 34. e4 {[%clk 0:01:20.2]} 34... Qd4 {[%clk 0:00:16.1]}
35. e5 {[%clk 0:01:01.4]} 35... Rb4 {[%clk 0:00:12.3]} 36. Qe7 {[%clk
0:00:44.3]} 36... Rb6 {[%clk 0:00:10.3]} 37. Qa7 {[%clk 0:00:19.1]} 37... Rb4
{[%clk 0:00:10]} 38. Qxd4 {[%clk 0:00:04.3]} 38... Rxd4 {[%clk 0:00:10.9]} 39.
Rc7 {[%clk 0:00:03.3]} 39... Re4 {[%clk 0:00:10.7]} 40. f4 {[%clk 0:00:03.5]}
40... a5 {[%clk 0:00:10.8]} 41. Kf2 {[%clk 0:00:02.7]} 41... Kf8 {[%clk
0:00:09.6]} 42. Ra7 {[%clk 0:00:01.8]} 42... a4 {[%clk 0:00:09.3]} 43. Kf3
{[%clk 0:00:02.1]} 43... Rb4 {[%clk 0:00:09.7]} 0-1

[Event "*** Titled Tuesday Blitz"]
[Site "Chess.com"]
[Date "2021.03.02"]
[Round "4"]
[White "Rondo_Capriccioso"]
[Black "MuhittinBuker"]
[Result "1-0"]
[WhiteElo "2479"]
[BlackElo "2120"]
[TimeControl "180+1"]
[EndTime "10:40:04 PST"]
[Termination "Rondo_Capriccioso won on time"]

1. d4 {[%clk 0:03:00.9]} 1... Nf6 {[%clk 0:02:47.2]} 2. c4 {[%clk 0:03:01]} 2...
e6 {[%clk 0:02:46.8]} 3. Nc3 {[%clk 0:03:01.9]} 3... Bb4 {[%clk 0:02:45.8]} 4.
Nf3 {[%clk 0:03:01.4]} 4... O-O {[%clk 0:02:43]} 5. Bd2 {[%clk 0:03:01.1]} 5...
d5 {[%clk 0:02:41.2]} 6. Qc2 {[%clk 0:03:00.8]} 6... c6 {[%clk 0:02:38.4]} 7. e3
{[%clk 0:03:00.9]} 7... Nbd7 {[%clk 0:02:37.8]} 8. Bd3 {[%clk 0:03:00.3]} 8...
dxc4 {[%clk 0:02:36.7]} 9. Bxc4 {[%clk 0:02:59.9]} 9... b5 {[%clk 0:02:37.2]}
10. Bd3 {[%clk 0:02:58.7]} 10... a6 {[%clk 0:02:37.4]} 11. a3 {[%clk 0:02:59.1]}
11... Be7 {[%clk 0:02:36.2]} 12. b4 {[%clk 0:02:56.5]} 12... Nb6 {[%clk
0:02:34.5]} 13. Ne4 {[%clk 0:02:53.8]} 13... h6 {[%clk 0:02:29.1]} 14. Qxc6
{[%clk 0:02:48.3]} 14... Ra7 {[%clk 0:02:22.4]} 15. Nxf6+ {[%clk 0:01:59.6]}
15... Bxf6 {[%clk 0:02:18.8]} 16. Qc2 {[%clk 0:01:53.8]} 16... Rc7 {[%clk
0:02:15.9]} 17. Qd1 {[%clk 0:01:52.8]} 17... Bb7 {[%clk 0:02:15.7]} 18. O-O
{[%clk 0:01:52.8]} 18... Qd5 {[%clk 0:02:14.2]} 19. Rc1 {[%clk 0:01:50.2]} 19...
Rfc8 {[%clk 0:02:13.5]} 20. Rc5 {[%clk 0:01:43.4]} 20... Rxc5 {[%clk 0:02:09.1]}
21. bxc5 {[%clk 0:01:44.3]} 21... Nc4 {[%clk 0:02:06.5]} 22. Bc1 {[%clk
0:01:43]} 22... e5 {[%clk 0:01:54.8]} 23. e4 {[%clk 0:01:35.4]} 23... Qd8 {[%clk
0:01:42.1]} 24. Bxc4 {[%clk 0:01:07.2]} 24... bxc4 {[%clk 0:01:41.3]} 25. dxe5
{[%clk 0:01:02.5]} 25... Be7 {[%clk 0:01:40.4]} 26. Nd2 {[%clk 0:00:55.5]} 26...
Rxc5 {[%clk 0:01:38.3]} 27. Qe2 {[%clk 0:00:51.9]} 27... c3 {[%clk 0:01:34.2]}
28. Nf3 {[%clk 0:00:50.1]} 28... c2 {[%clk 0:01:28.3]} 29. Be3 {[%clk
0:00:39.7]} 29... Rc8 {[%clk 0:01:19.3]} 30. Rc1 {[%clk 0:00:27.2]} 30... Bxe4
{[%clk 0:01:10.7]} 31. Bb6 {[%clk 0:00:13.8]} 31... Bxf3 {[%clk 0:00:30.3]} 32.
Bxd8 {[%clk 0:00:12.6]} 32... Bxe2 {[%clk 0:00:30]} 33. Bxe7 {[%clk 0:00:13]}
33... Bd1 {[%clk 0:00:16.7]} 34. f3 {[%clk 0:00:10.4]} 34... a5 {[%clk 0:00:13]}
35. Kf2 {[%clk 0:00:08.1]} 35... Rb8 {[%clk 0:00:12.9]} 36. Ke3 {[%clk
0:00:07.3]} 36... Rb5 {[%clk 0:00:09.2]} 37. Bd6 {[%clk 0:00:05.9]} 37... g5
{[%clk 0:00:06.9]} 38. g3 {[%clk 0:00:04.4]} 38... Rd5 {[%clk 0:00:05.7]} 39. f4
{[%clk 0:00:04.3]} 39... gxf4+ {[%clk 0:00:04.4]} 40. gxf4 {[%clk 0:00:05.2]}
40... f5 {[%clk 0:00:01.8]} 41. Bc7 {[%clk 0:00:05.2]} 1-0

[Event "*** Titled Tuesday Blitz"]
[Site "Chess.com"]
[Date "2021.03.02"]
[Round "4"]
[White "mhebden"]
[Black "AryanTari"]
[Result "0-1"]
[WhiteElo "2543"]
[BlackElo "2894"]
[TimeControl "180+1"]
[EndTime "10:40:08 PST"]
[Termination "AryanTari won by resignation"]

1. d4 {[%clk 0:03:00.9]} 1... d5 {[%clk 0:02:56.8]} 2. Nf3 {[%clk 0:03:00]} 2...
Nf6 {[%clk 0:02:56.8]} 3. c4 {[%clk 0:03:00.3]} 3... e6 {[%clk 0:02:57.2]} 4.
Bg5 {[%clk 0:03:00.3]} 4... Be7 {[%clk 0:02:56.1]} 5. e3 {[%clk 0:02:58.2]} 5...
h6 {[%clk 0:02:53.6]} 6. Bh4 {[%clk 0:02:57.6]} 6... O-O {[%clk 0:02:53.7]} 7.
Nc3 {[%clk 0:02:56.8]} 7... b6 {[%clk 0:02:54.3]} 8. Bd3 {[%clk 0:02:55.1]} 8...
dxc4 {[%clk 0:02:46.7]} 9. Bxc4 {[%clk 0:02:54.3]} 9... Bb7 {[%clk 0:02:47.3]}
10. O-O {[%clk 0:02:53.6]} 10... Nbd7 {[%clk 0:02:47.7]} 11. Bg3 {[%clk
0:02:47.6]} 11... a6 {[%clk 0:02:47.2]} 12. a4 {[%clk 0:02:46.3]} 12... c5
{[%clk 0:02:45.5]} 13. Qe2 {[%clk 0:02:43.4]} 13... cxd4 {[%clk 0:02:27.1]} 14.
exd4 {[%clk 0:02:42.1]} 14... Nh5 {[%clk 0:02:13.3]} 15. d5 {[%clk 0:02:37.7]}
15... Nxg3 {[%clk 0:02:07.6]} 16. hxg3 {[%clk 0:02:36.4]} 16... exd5 {[%clk
0:01:59.6]} 17. Bxd5 {[%clk 0:02:35.6]} 17... Bxd5 {[%clk 0:01:44.8]} 18. Nxd5
{[%clk 0:02:34.7]} 18... Re8 {[%clk 0:01:42.3]} 19. Rfd1 {[%clk 0:02:32.6]}
19... Bf8 {[%clk 0:01:25.9]} 20. Qf1 {[%clk 0:02:20.7]} 20... Ne5 {[%clk
0:01:14.3]} 21. b4 {[%clk 0:02:12.6]} 21... a5 {[%clk 0:01:02.7]} 22. bxa5
{[%clk 0:02:05.8]} 22... bxa5 {[%clk 0:01:01.7]} 23. Qb5 {[%clk 0:01:54.2]}
23... Nxf3+ {[%clk 0:01:00.8]} 24. gxf3 {[%clk 0:01:53.3]} 24... Rb8 {[%clk
0:00:59.1]} 25. Qa6 {[%clk 0:01:32.3]} 25... Rb2 {[%clk 0:00:58.9]} 26. Ne3
{[%clk 0:01:20.1]} 26... Qg5 {[%clk 0:00:52.7]} 27. f4 {[%clk 0:01:16.3]} 27...
Qh5 {[%clk 0:00:44]} 28. Qd3 {[%clk 0:00:33.2]} 28... Bc5 {[%clk 0:00:21.4]} 29.
Rd2 {[%clk 0:00:32.6]} 29... Rxd2 {[%clk 0:00:19.2]} 30. Qxd2 {[%clk 0:00:32.1]}
30... Bxe3 {[%clk 0:00:19.3]} 31. fxe3 {[%clk 0:00:31.1]} 31... Qf3 {[%clk
0:00:19.5]} 32. Qf2 {[%clk 0:00:31.3]} 32... Qxe3 {[%clk 0:00:16.4]} 33. Qxe3
{[%clk 0:00:28.8]} 33... Rxe3 {[%clk 0:00:17.3]} 34. Kf2 {[%clk 0:00:29.1]}
34... Re4 {[%clk 0:00:17.9]} 35. Kf3 {[%clk 0:00:28]} 35... Rb4 {[%clk 0:00:18]}
36. f5 {[%clk 0:00:27.5]} 36... h5 {[%clk 0:00:16.1]} 37. f6 {[%clk 0:00:25.8]}
37... g5 {[%clk 0:00:13.6]} 38. Rc1 {[%clk 0:00:24.9]} 38... Rxa4 {[%clk
0:00:11]} 39. Rc5 {[%clk 0:00:24.5]} 39... Rg4 {[%clk 0:00:10.6]} 40. Rxa5
{[%clk 0:00:23.2]} 40... Kh7 {[%clk 0:00:11.1]} 41. Ra8 {[%clk 0:00:19.5]} 41...
Rc4 {[%clk 0:00:09.6]} 42. Rf8 {[%clk 0:00:18.6]} 42... Kg6 {[%clk 0:00:09.8]}
43. Rg8+ {[%clk 0:00:18.6]} 43... Kxf6 {[%clk 0:00:10]} 44. Rh8 {[%clk
0:00:16.6]} 44... Rc3+ {[%clk 0:00:10.5]} 45. Kg2 {[%clk 0:00:16.1]} 45... Kg6
{[%clk 0:00:10]} 46. Rg8+ {[%clk 0:00:15.4]} 46... Kf5 {[%clk 0:00:10.6]} 47.
Rh8 {[%clk 0:00:13.4]} 47... Kg4 {[%clk 0:00:10.6]} 48. Kf2 {[%clk 0:00:13]}
48... f5 {[%clk 0:00:10.5]} 49. Rf8 {[%clk 0:00:13.5]} 49... Rf3+ {[%clk
0:00:10.7]} 50. Ke2 {[%clk 0:00:11.6]} 50... Rxg3 {[%clk 0:00:11]} 51. Rxf5
{[%clk 0:00:12]} 51... Kxf5 {[%clk 0:00:11.2]} 0-1

[Event "*** Titled Tuesday Blitz"]
[Site "Chess.com"]
[Date "2021.03.02"]
[Round "4"]
[White "ukchessbomber"]
[Black "sau6on"]
[Result "1-0"]
[WhiteElo "2534"]
[BlackElo "2559"]
[TimeControl "180+1"]
[EndTime "10:40:09 PST"]
[Termination "ukchessbomber won on time"]

1. d4 {[%clk 0:03:00.9]} 1... d5 {[%clk 0:02:59.3]} 2. c4 {[%clk 0:02:59.9]}
2... Nc6 {[%clk 0:02:59.3]} 3. Nf3 {[%clk 0:02:56.7]} 3... Bg4 {[%clk
0:02:58.4]} 4. cxd5 {[%clk 0:02:53.6]} 4... Bxf3 {[%clk 0:02:57.5]} 5. exf3
{[%clk 0:02:50.2]} 5... Qxd5 {[%clk 0:02:56.9]} 6. Be3 {[%clk 0:02:50.7]} 6...
e5 {[%clk 0:02:56.2]} 7. Nc3 {[%clk 0:02:50.2]} 7... Bb4 {[%clk 0:02:55.1]} 8.
dxe5 {[%clk 0:02:50.1]} 8... Qxe5 {[%clk 0:02:52.3]} 9. Be2 {[%clk 0:02:36.7]}
9... Bxc3+ {[%clk 0:02:49.1]} 10. bxc3 {[%clk 0:02:37.6]} 10... Qxc3+ {[%clk
0:02:49.5]} 11. Bd2 {[%clk 0:02:38.1]} 11... Qf6 {[%clk 0:02:35.5]} 12. O-O
{[%clk 0:02:36.4]} 12... Nge7 {[%clk 0:02:30.3]} 13. Qb1 {[%clk 0:02:26.7]}
13... b6 {[%clk 0:02:25]} 14. a4 {[%clk 0:01:55.3]} 14... Nd4 {[%clk 0:02:11.8]}
15. Bd3 {[%clk 0:01:53.4]} 15... h6 {[%clk 0:01:54.2]} 16. Bc3 {[%clk
0:01:27.1]} 16... O-O {[%clk 0:01:44.8]} 17. Qb2 {[%clk 0:01:18.6]} 17... c5
{[%clk 0:01:43.4]} 18. Be4 {[%clk 0:01:18.2]} 18... Rad8 {[%clk 0:01:37.5]} 19.
Kh1 {[%clk 0:01:16.1]} 19... Nec6 {[%clk 0:01:28.2]} 20. a5 {[%clk 0:01:13.9]}
20... b5 {[%clk 0:01:04.7]} 21. Rac1 {[%clk 0:01:13.6]} 21... b4 {[%clk
0:00:27.9]} 22. Bd2 {[%clk 0:01:12.3]} 22... Qd6 {[%clk 0:00:23.9]} 23. a6
{[%clk 0:00:55.8]} 23... Ne5 {[%clk 0:00:19.1]} 24. Bf4 {[%clk 0:00:51.8]} 24...
Rb8 {[%clk 0:00:17.5]} 25. Rfe1 {[%clk 0:00:48.3]} 25... f6 {[%clk 0:00:17]} 26.
Bb7 {[%clk 0:00:40.5]} 26... Rf7 {[%clk 0:00:13.3]} 27. Qa2 {[%clk 0:00:27.7]}
27... Kf8 {[%clk 0:00:09.7]} 28. Red1 {[%clk 0:00:21.7]} 28... Rd8 {[%clk
0:00:08.9]} 29. Qa5 {[%clk 0:00:19]} 29... Rc7 {[%clk 0:00:08.4]} 30. Be4 {[%clk
0:00:14.8]} 30... c4 {[%clk 0:00:08.1]} 31. Bd2 {[%clk 0:00:13.4]} 31... c3
{[%clk 0:00:08]} 32. Be3 {[%clk 0:00:13.1]} 32... Nc4 {[%clk 0:00:07.1]} 33.
Rxd4 {[%clk 0:00:11.4]} 33... Nxa5 {[%clk 0:00:06.2]} 34. Rxd6 {[%clk
0:00:10.1]} 34... Rxd6 {[%clk 0:00:07.1]} 35. Bf4 {[%clk 0:00:10.7]} 35... Rdd7
{[%clk 0:00:05.5]} 36. Bf5 {[%clk 0:00:11.1]} 36... b3 {[%clk 0:00:03.3]} 37. h3
{[%clk 0:00:06]} 37... b2 {[%clk 0:00:03]} 38. Rb1 {[%clk 0:00:06.6]} 38... Rd2
{[%clk 0:00:02.6]} 39. Re1 {[%clk 0:00:02.7]} 39... Rxf2 {[%clk 0:00:01.9]} 40.
Bg6 {[%clk 0:00:02.9]} 40... Re7 {[%clk 0:00:02]} 41. Bd6 {[%clk 0:00:02.7]}
41... Nc6 {[%clk 0:00:01.3]} 42. Bxe7+ {[%clk 0:00:02.4]} 42... Nxe7 {[%clk
0:00:02.2]} 43. Rd1 {[%clk 0:00:03.3]} 43... Nc6 {[%clk 0:00:01.5]} 44. Re1
{[%clk 0:00:04]} 44... Ne5 {[%clk 0:00:01.6]} 45. Bb1 {[%clk 0:00:04.6]} 1-0

[Event "*** Titled Tuesday Blitz"]
[Site "Chess.com"]
[Date "2021.03.02"]
[Round "4"]
[White "AttackSparrow"]
[Black "German_Bazeev"]
[Result "0-1"]
[WhiteElo "2544"]
[BlackElo "2731"]
[TimeControl "180+1"]
[EndTime "10:40:10 PST"]
[Termination "German_Bazeev won on time"]

1. e4 {[%clk 0:03:00.9]} 1... c6 {[%clk 0:02:57.7]} 2. d4 {[%clk 0:03:00.6]}
2... d5 {[%clk 0:02:57.1]} 3. exd5 {[%clk 0:03:01.5]} 3... cxd5 {[%clk
0:02:56.5]} 4. c4 {[%clk 0:03:02.1]} 4... Nf6 {[%clk 0:02:43.6]} 5. Nc3 {[%clk
0:03:00.1]} 5... e6 {[%clk 0:02:43.2]} 6. Nf3 {[%clk 0:02:58.9]} 6... Nc6 {[%clk
0:02:43.7]} 7. cxd5 {[%clk 0:02:57.8]} 7... Nxd5 {[%clk 0:02:38.9]} 8. Bd3
{[%clk 0:02:57.6]} 8... Bb4 {[%clk 0:02:38.2]} 9. Qc2 {[%clk 0:02:57.5]} 9...
Bd7 {[%clk 0:02:34.5]} 10. O-O {[%clk 0:02:55.9]} 10... Bxc3 {[%clk 0:02:35]}
11. bxc3 {[%clk 0:02:55.6]} 11... Rc8 {[%clk 0:02:35.9]} 12. Qd2 {[%clk
0:02:27.2]} 12... Qa5 {[%clk 0:02:20.7]} 13. Bb2 {[%clk 0:02:18.3]} 13... Nb6
{[%clk 0:02:07.1]} 14. a4 {[%clk 0:02:05]} 14... O-O {[%clk 0:01:38.5]} 15. Rfe1
{[%clk 0:01:59.5]} 15... Rfe8 {[%clk 0:01:16.3]} 16. Ne5 {[%clk 0:01:55.5]}
16... Nxe5 {[%clk 0:01:07.3]} 17. Rxe5 {[%clk 0:01:56.4]} 17... Nd5 {[%clk
0:01:07.1]} 18. Qe2 {[%clk 0:01:21.9]} 18... Qb6 {[%clk 0:00:40.1]} 19. a5
{[%clk 0:00:50.6]} 19... Qc7 {[%clk 0:00:37.6]} 20. Qd2 {[%clk 0:00:27.1]} 20...
Qd8 {[%clk 0:00:24.5]} 21. c4 {[%clk 0:00:26.3]} 21... Nf6 {[%clk 0:00:22.7]}
22. h3 {[%clk 0:00:23.6]} 22... Bc6 {[%clk 0:00:22.3]} 23. Rae1 {[%clk
0:00:22.2]} 23... Qd6 {[%clk 0:00:16.3]} 24. Bc3 {[%clk 0:00:18.2]} 24... Red8
{[%clk 0:00:15.9]} 25. Rg5 {[%clk 0:00:17.4]} 25... h6 {[%clk 0:00:09.3]} 26.
Rg3 {[%clk 0:00:16.3]} 26... Nh5 {[%clk 0:00:08.4]} 27. Rg4 {[%clk 0:00:10.2]}
27... f5 {[%clk 0:00:08.7]} 28. Rh4 {[%clk 0:00:09.4]} 28... Nf6 {[%clk
0:00:07.6]} 29. d5 {[%clk 0:00:08.2]} 29... Nxd5 {[%clk 0:00:03.8]} 30. cxd5
{[%clk 0:00:06.9]} 30... Qxd5 {[%clk 0:00:04.7]} 31. Bf1 {[%clk 0:00:04.6]}
31... Qxd2 {[%clk 0:00:02.8]} 32. Bxd2 {[%clk 0:00:05.5]} 32... Rxd2 {[%clk
0:00:03.1]} 33. Kh2 {[%clk 0:00:05.2]} 33... Rd6 {[%clk 0:00:03.2]} 34. Rc4
{[%clk 0:00:03.6]} 34... Kf7 {[%clk 0:00:03.5]} 35. Rc5 {[%clk 0:00:03.7]} 35...
Rcd8 {[%clk 0:00:03.8]} 36. Rce5 {[%clk 0:00:04.1]} 36... a6 {[%clk 0:00:04.1]}
37. f4 {[%clk 0:00:04.3]} 37... Bd5 {[%clk 0:00:04.7]} 38. Bd3 {[%clk
0:00:04.4]} 38... Rc6 {[%clk 0:00:04.9]} 39. R1e2 {[%clk 0:00:03.6]} 39... Rc3
{[%clk 0:00:05.1]} 40. Rd2 {[%clk 0:00:03.7]} 40... Bc6 {[%clk 0:00:04.4]} 41.
Re3 {[%clk 0:00:02.6]} 41... Kf6 {[%clk 0:00:03.7]} 42. g4 {[%clk 0:00:02]}
42... Bb5 {[%clk 0:00:03.8]} 43. g5+ {[%clk 0:00:02.3]} 43... hxg5 {[%clk
0:00:04.7]} 44. fxg5+ {[%clk 0:00:03]} 44... Ke7 {[%clk 0:00:05.4]} 45. Bxf5
{[%clk 0:00:02.1]} 45... Rxd2+ {[%clk 0:00:05.6]} 0-1